fUST/lending_fUST_20240805
["ID","MTS","AMOUNT","RATE_DAILY","PERIOD"]
[334242587,1722855898805,-500.0,0.00042739,31]
[334242588,1722855898844,-573.31,0.00042739,31]
[334242589,1722855898882,-790.04,0.00042739,31]
[334242590,1722855898921,-1310.1,0.00042739,31]
[334242591,1722855898962,-500.0,0.00042739,31]
[334242592,1722855899003,-994.56,0.00042739,31]
[334242593,1722855899043,-500.0,0.00042739,31]
[334242594,1722855899088,-7984.69,0.00042739,31]
[334242595,1722855899129,-549.92,0.00042739,31]
[334242596,1722855899169,-500.0,0.00042739,31]
[334242597,1722855899206,-500.0,0.00042739,31]
[334242598,1722855899244,-908.96,0.00042739,31]
[334242599,1722855899281,-500.0,0.00042739,31]
[334242600,1722855899319,-6173.34,0.00042739,31]
[334242601,1722855899356,-727.99,0.00042739,31]
[334242602,1722855899397,-1072.4,0.00042739,31]
[334242603,1722855899437,-500.0,0.00042739,31]
[334242604,1722855899478,-500.0,0.00042739,31]
[334242605,1722855899521,-500.0,0.00042739,31]
[334242606,1722855899562,-214.51574338,0.00042739,31]
[334242607,1722855899602,-9665.63,0.00042739,31]
[334242608,1722855899641,-857.1,0.00042739,31]
[334242609,1722855899682,-1424.37,0.00042739,31]
[334242610,1722855899723,-500.0,0.00042739,31]
[334242611,1722855899766,-500.0,0.00042739,31]
[334242612,1722855899806,-803.81,0.00042739,31]
[334242613,1722855899847,-825.94,0.00042739,31]
[334242614,1722855899888,-12236.57,0.00042739,120]
[334242615,1722855899931,-500.0,0.00042739,31]
[334242616,1722855899971,-500.0,0.00042739,31]
[334242617,1722855900016,-3748.41,0.00042739,31]
[334242618,1722855900061,-500.0,0.00042739,31]
[334242619,1722855900109,-500.0,0.00042739,31]
[334242620,1722855900157,-2909.32,0.00042739,31]
[334242621,1722855900207,-500.0,0.00042739,31]
[334242622,1722855900251,-500.0,0.00042739,31]
[334242623,1722855900300,-500.0,0.00042739,31]
[334242624,1722855900347,-500.0,0.00042739,31]
[334242625,1722855900394,-767.28,0.00042739,31]
[334242626,1722855900441,-4015.88,0.00042739,31]
[334242627,1722855900491,-500.0,0.00042739,31]
[334242628,1722855900534,-500.0,0.00042739,31]
[334242629,1722855900581,-1014.51,0.00042739,31]
[334242630,1722855900627,-1174.29,0.00042739,31]
[334242631,1722855900673,-500.0,0.00042739,31]
[334242632,1722855900719,-754.85,0.00042739,31]
[334242633,1722855900774,-1374.17,0.00042739,31]
[334242634,1722855900819,-1031.24,0.00042739,31]
[334242635,1722855900862,-500.0,0.00042739,31]
[334242636,1722855900906,-500.0,0.00042739,31]
[334242637,1722855900951,-500.0,0.00042739,31]
[334242638,1722855900999,-500.0,0.00042739,31]
[334242639,1722855901042,-670.71,0.00042739,31]
[334242640,1722855901087,-500.0,0.00042739,31]
[334242641,1722855901130,-500.0,0.00042739,31]
[334242642,1722855901174,-2005.0,0.00042739,31]
[334242643,1722855901215,-1974.46,0.00042739,31]
[334242644,1722855901254,-1304.72,0.00042739,31]
[334242645,1722855901294,-500.0,0.00042739,31]
[334242646,1722855901336,-500.0,0.00042739,31]
[334242647,1722855901379,-500.0,0.00042739,31]
[334242648,1722855901422,-500.0,0.00042739,31]
[334242649,1722855901467,-552.41,0.00042739,31]
[334242650,1722855901515,-939.28,0.00042739,31]
[334242651,1722855901556,-524.54,0.00042739,31]
[334242652,1722855901598,-500.0,0.00042739,31]
[334242653,1722855901642,-6176.67,0.00042739,31]
[334242654,1722855901687,-1355.54,0.00042739,31]
[334242655,1722855901730,-782.29,0.00042739,31]
[334242656,1722855901784,-982.1,0.00042739,31]
[334242657,1722855901828,-820.99,0.00042739,31]
[334242658,1722855901872,-500.0,0.00042739,31]
[334242659,1722855901916,-500.0,0.00042739,31]
[334242660,1722855901960,-1322.76229835,0.000428,60]
[334242661,1722855902143,-6607.15152452,0.000428,60]
[334242662,1722855902189,-1199.82910769,0.000428,60]
[334242663,1722855902233,-34368.3339524,0.000428,60]
[334242664,1722855902281,-4728.516748,0.000428,60]
[334242665,1722855902323,-193.300518,0.000429,30]
[334242666,1722855902374,-5000.0,0.00043,43]
[334242667,1722855902421,-1527.62405015,0.00043,60]
[334242668,1722855902466,-150.0,0.00043,60]
[334242669,1722855902514,-1000.0,0.00043,43]
[334242670,1722855902557,-288.0,0.00043,90]
[334242671,1722855902598,-288.0,0.00043014,90]
[334242672,1722855902640,-5112.574999,0.000432,120]
[334242673,1722855902683,-500.0,0.00043287,31]
[334242674,1722855902729,-500.0,0.00043287,31]
[334242675,1722855902787,-500.0,0.00043287,31]
[334242676,1722855902831,-801.23,0.00043287,31]
[334242677,1722855902875,-500.0,0.00043287,31]
[334242678,1722855902918,-894.23,0.00043287,31]
[334242679,1722855902959,-328.63652978,0.00043287,31]
[334242680,1722855902998,-500.0,0.00043287,31]
[334242681,1722855903041,-500.0,0.00043287,31]
[334242682,1722855903091,-500.0,0.00043287,31]
[334242683,1722855903139,-500.0,0.00043287,31]
[334242684,1722855903186,-500.0,0.00043287,31]
[334242685,1722855903233,-203.1012151,0.00043287,31]
[334242686,1722855903292,-500.0,0.00043287,31]
[334242687,1722855903340,-500.0,0.00043287,31]
[334242688,1722855903387,-648.07,0.00043287,31]
[334242689,1722855903433,-629.74,0.00043287,31]
[334242690,1722855903479,-500.0,0.00043287,31]
[334242691,1722855903534,-1276.5,0.00043287,31]
[334242692,1722855903580,-500.0,0.00043287,31]
[334242693,1722855903635,-164.50471586,0.00043287,31]
[334242694,1722855903687,-500.0,0.00043287,31]
[334242695,1722855903745,-556.09,0.00043287,31]
[334242696,1722855903794,-500.0,0.00043287,31]
[334242697,1722855903847,-330.31880061,0.00043287,31]
[334242698,1722855903896,-500.0,0.00043287,31]
[334242699,1722855903946,-823.07,0.00043287,31]
[334242700,1722855904000,-378.8211111,0.00043287,31]
[334242701,1722855904050,-500.0,0.00043287,31]
[334242702,1722855904101,-500.0,0.00043287,31]
[334242703,1722855904159,-500.0,0.00043287,31]
[334242704,1722855904209,-609.11199125,0.00043287,31]
[334242705,1722855904258,-500.0,0.00043287,31]
[334242706,1722855904310,-500.0,0.00043287,31]
[334242707,1722855904358,-500.0,0.00043287,31]
[334242708,1722855904406,-452.41,0.00043287,31]
[334242709,1722855904455,-574.39,0.00043287,31]
[334242710,1722855904507,-595.43,0.00043287,31]
[334242711,1722855904557,-500.0,0.00043287,31]
[334242712,1722855904605,-500.0,0.00043287,31]
[334242713,1722855904657,-500.0,0.00043287,31]
[334242714,1722855904709,-866.48,0.00043287,31]
[334242715,1722855904761,-500.0,0.00043287,31]
[334242716,1722855904809,-500.0,0.00043287,31]
[334242717,1722855904855,-500.0,0.00043287,31]
[334242718,1722855904901,-500.0,0.00043287,31]
[334242719,1722855904947,-590.56,0.00043287,31]
[334242720,1722855904995,-500.0,0.00043287,31]
[334242721,1722855905041,-500.0,0.00043287,31]
[334242722,1722855905089,-500.0,0.00043287,31]
[334242723,1722855905138,-500.0,0.00043287,31]
[334242724,1722855905188,-500.0,0.00043287,31]
[334242725,1722855905239,-902.94,0.00043287,31]
[334242726,1722855905290,-500.0,0.00043287,31]
[334242727,1722855905341,-500.0,0.00043287,31]
[334242728,1722855905391,-500.0,0.00043287,31]
[334242729,1722855905439,-607.02401851,0.00043287,31]
[334242730,1722855905491,-500.0,0.00043287,31]
[334242731,1722855905541,-266.4655834,0.00043287,31]
[334242732,1722855905589,-500.0,0.00043287,31]
[334242733,1722855905638,-500.0,0.00043287,31]
[334242734,1722855905687,-500.0,0.00043287,31]
[334242735,1722855905741,-500.0,0.00043287,31]
[334242736,1722855905791,-500.0,0.00043287,31]
[334242737,1722855905844,-1022.66,0.00043287,31]
[334242738,1722855905894,-500.0,0.00043287,31]
[334242739,1722855905945,-943.74,0.00043287,31]
[334242740,1722855906001,-500.0,0.00043287,31]
[334242741,1722855906053,-500.0,0.00043287,31]
[334242742,1722855906106,-1053.19,0.00043287,31]
[334242743,1722855906160,-500.0,0.00043287,31]
[334242744,1722855906213,-584.69,0.00043287,31]
[334242745,1722855906259,-1305.1,0.00043287,31]
[334242746,1722855906307,-528.61611395,0.00043287,31]
[334242747,1722855906355,-415.23027457,0.00043287,31]
[334242748,1722855906402,-500.0,0.00043287,31]
[334242749,1722855906452,-553.49,0.00043287,31]
[334242750,1722855906502,-522.79153101,0.00043287,31]
[334242751,1722855906548,-500.0,0.00043287,31]
[334242752,1722855906596,-500.0,0.00043287,31]
[334242753,1722855906642,-500.0,0.00043287,31]
[334242754,1722855906687,-898.41,0.00043287,31]
[334242755,1722855906731,-500.0,0.00043287,31]
[334242756,1722855906783,-500.0,0.00043287,31]
[334242757,1722855906828,-500.0,0.00043287,31]
[334242758,1722855906874,-526.13041903,0.00043287,31]
[334242759,1722855906921,-989.94,0.00043287,31]
[334242760,1722855906967,-500.0,0.00043287,31]
[334242761,1722855907012,-500.0,0.00043287,31]
[334242762,1722855907055,-613.99,0.00043287,31]
[334242763,1722855907097,-500.0,0.00043287,31]
[334242764,1722855907141,-530.57,0.00043287,31]
[334242765,1722855907326,-500.0,0.00043287,31]
[334242766,1722855907377,-310.60176588,0.00043287,31]
[334242767,1722855907425,-616.76,0.00043287,31]
[334242768,1722855907472,-500.0,0.00043287,31]
[334242769,1722855907529,-694.59,0.00043287,31]
[334242770,1722855907577,-1013.28,0.00043287,31]
[334242771,1722855907622,-500.0,0.00043287,31]
[334242772,1722855907666,-8149.15,0.00043287,31]
[334242773,1722855907710,-377.8216189,0.00043287,31]
[334242774,1722855907756,-2171.38,0.00043287,31]
[334242775,1722855907807,-867.75,0.00043287,31]
[334242776,1722855907859,-500.0,0.00043287,31]
[334242777,1722855907908,-13964.26,0.00043287,31]
[334242778,1722855907957,-500.0,0.00043287,31]
[334242779,1722855908004,-623.8,0.00043287,31]
[334242780,1722855908049,-500.0,0.00043287,31]
[334242781,1722855908097,-1321.46,0.00043287,31]
[334242782,1722855908145,-500.0,0.00043287,31]
[334242783,1722855908192,-500.0,0.00043287,31]
[334242784,1722855908235,-523.36388088,0.00043287,31]
[334242785,1722855908283,-781.23,0.00043287,31]
[334242786,1722855908328,-500.0,0.00043287,31]
[334242787,1722855908372,-615.54,0.00043287,31]
[334242788,1722855908416,-952.95,0.00043287,31]
[334242789,1722855908462,-538.82,0.00043287,31]
[334242790,1722855908512,-500.0,0.00043287,31]
[334242791,1722855908559,-500.0,0.00043287,31]
[334242792,1722855908607,-2841.01,0.00043287,31]
[334242793,1722855908654,-1921.77,0.00043287,31]
[334242794,1722855908701,-500.0,0.00043287,31]
[334242795,1722855908750,-500.0,0.00043287,31]
[334242796,1722855908798,-500.0,0.00043287,31]
[334242797,1722855908847,-629.38,0.00043287,31]
[334242798,1722855908896,-720.86,0.00043287,31]
[334242799,1722855908945,-500.0,0.00043287,31]
[334242800,1722855909002,-3289.33,0.00043287,31]
[334242801,1722855909051,-702.68,0.00043287,31]
[334242802,1722855909099,-500.0,0.00043287,31]
[334242803,1722855909147,-500.0,0.00043287,31]
[334242804,1722855909196,-528.7323776,0.00043287,31]
[334242805,1722855909254,-2296.59,0.00043287,31]
[334242806,1722855909303,-1814.25,0.00043287,31]
[334242807,1722855909349,-753.6,0.00043287,31]
[334242808,1722855909395,-1640.04,0.00043287,31]
[334242809,1722855909443,-4120.74,0.00043287,31]
[334242810,1722855909493,-500.0,0.00043287,31]
[334242811,1722855909541,-500.0,0.00043287,31]
[334242812,1722855909592,-889.04,0.00043287,31]
[334242813,1722855909640,-500.0,0.00043287,31]
[334242814,1722855909688,-557.23440025,0.00043287,31]
[334242815,1722855909734,-500.0,0.00043287,31]
[334242816,1722855909782,-500.0,0.00043287,31]
[334242817,1722855909830,-500.0,0.00043287,31]
[334242818,1722855909879,-505.33,0.00043287,31]
[334242819,1722855909928,-500.0,0.00043287,31]
[334242820,1722855909978,-500.0,0.00043287,31]
[334242821,1722855910035,-1260.62,0.00043287,31]
[334242822,1722855910087,-500.0,0.00043287,31]
[334242823,1722855910142,-500.0,0.00043287,31]
[334242824,1722855910191,-573.31,0.00043287,31]
[334242825,1722855910248,-790.04,0.00043287,31]
[334242826,1722855910300,-1310.1,0.00043287,31]
[334242827,1722855910349,-500.0,0.00043287,31]
[334242828,1722855910400,-994.56,0.00043287,31]
[334242829,1722855910447,-500.0,0.00043287,31]
[334242830,1722855910503,-7984.69,0.00043287,31]
[334242831,1722855910549,-549.92,0.00043287,31]
[334242832,1722855910595,-500.0,0.00043287,31]
[334242833,1722855910640,-500.0,0.00043287,31]
[334242834,1722855910689,-908.96,0.00043287,31]
[334242835,1722855910735,-500.0,0.00043287,31]
[334242836,1722855910788,-6173.34,0.00043287,31]
[334242837,1722855910837,-727.99,0.00043287,31]
[334242838,1722855910884,-1072.4,0.00043287,31]
[334242839,1722855910930,-500.0,0.00043287,31]
[334242840,1722855910976,-500.0,0.00043287,31]
[334242841,1722855911025,-500.0,0.00043287,31]
[334242842,1722855911070,-9665.63,0.00043287,31]
[334242843,1722855911122,-857.1,0.00043287,31]
[334242844,1722855911167,-1424.37,0.00043287,31]
[334242845,1722855911215,-500.0,0.00043287,31]
[334242846,1722855911260,-500.0,0.00043287,31]
[334242847,1722855911309,-803.81,0.00043287,31]
[334242848,1722855911353,-825.94,0.00043287,31]
[334242849,1722855911396,-12236.57,0.00043287,120]
[334242850,1722855911439,-500.0,0.00043287,31]
[334242851,1722855911485,-500.0,0.00043287,31]
[334242852,1722855911535,-3748.41,0.00043287,31]
[334242853,1722855911580,-500.0,0.00043287,31]
[334242854,1722855911626,-500.0,0.00043287,31]
[334242855,1722855911672,-2909.32,0.00043287,31]
[334242856,1722855911718,-500.0,0.00043287,31]
[334242857,1722855911763,-500.0,0.00043287,31]
[334242858,1722855911809,-500.0,0.00043287,31]
[334242859,1722855911851,-500.0,0.00043287,31]
[334242860,1722855911895,-767.28,0.00043287,31]
[334242861,1722855911942,-4015.88,0.00043287,31]
[334242862,1722855911988,-500.0,0.00043287,31]
[334242863,1722855912044,-500.0,0.00043287,31]
[334242864,1722855912091,-1014.51,0.00043287,31]
[334242865,1722855912135,-1174.29,0.00043287,31]
[334242866,1722855912179,-500.0,0.00043287,31]
[334242867,1722855912225,-754.85,0.00043287,31]
[334242868,1722855912270,-1374.17,0.00043287,31]
[334242869,1722855912444,-1031.24,0.00043287,31]
[334242870,1722855912502,-234.42127487,0.00043287,31]
[334242871,1722855912552,-500.0,0.00043287,31]
[334242872,1722855912603,-500.0,0.00043287,31]
[334242873,1722855912652,-500.0,0.00043287,31]
[334242874,1722855912702,-670.71,0.00043287,31]
[334242875,1722855912760,-500.0,0.00043287,31]
[334242876,1722855912808,-2005.0,0.00043287,31]
[334242877,1722855912858,-500.0,0.00043287,31]
[334242878,1722855912908,-1974.46,0.00043287,31]
[334242879,1722855912958,-1304.72,0.00043287,31]
[334242880,1722855913011,-500.0,0.00043287,31]
[334242881,1722855913056,-500.0,0.00043287,31]
[334242882,1722855913102,-500.0,0.00043287,31]
[334242883,1722855913151,-500.0,0.00043287,31]
[334242884,1722855913198,-552.41,0.00043287,31]
[334242885,1722855913243,-939.28,0.00043287,31]
[334242886,1722855913289,-524.54,0.00043287,31]
[334242887,1722855913331,-500.0,0.00043287,31]
[334242888,1722855913376,-6176.67,0.00043287,31]
[334242889,1722855913419,-1355.54,0.00043287,31]
[334242890,1722855913463,-782.29,0.00043287,31]
[334242891,1722855913504,-982.1,0.00043287,31]
[334242892,1722855913548,-820.99,0.00043287,31]
[334242893,1722855913591,-568.79739678,0.00043287,31]
[334242894,1722855913637,-500.0,0.00043287,31]
[334242895,1722855913683,-316.65,0.000433,30]
[334242896,1722855913730,-166.0,0.00043496,90]
[334242897,1722855913775,-2887.52285795,0.000437,30]
[334242898,1722855913821,-1999.94097969,0.000438,60]
[334242899,1722855913867,-380.04868195,0.00043834,31]
[334242900,1722855913916,-449.9692473,0.00043834,31]
[334242901,1722855913965,-377.27065965,0.00043834,31]
[334242902,1722855914018,-500.0,0.00043834,31]
[334242903,1722855914067,-500.0,0.00043834,31]
[334242904,1722855914123,-500.0,0.00043834,31]
[334242905,1722855914173,-500.0,0.00043834,31]
[334242906,1722855914221,-447.09572245,0.00043834,31]
[334242907,1722855914270,-500.0,0.00043835,31]
[334242908,1722855914319,-500.0,0.00043835,31]
[334242909,1722855914367,-500.0,0.00043835,31]
[334242910,1722855914416,-801.23,0.00043835,31]
[334242911,1722855914465,-500.0,0.00043835,31]
[334242912,1722855914513,-894.23,0.00043835,31]
[334242913,1722855914560,-500.0,0.00043835,31]
[334242914,1722855914606,-500.0,0.00043835,31]
[334242915,1722855914651,-500.0,0.00043835,31]
[334242916,1722855914695,-500.0,0.00043835,31]
[334242917,1722855914738,-500.0,0.00043835,31]
[334242918,1722855914782,-500.0,0.00043835,31]
[334242919,1722855914828,-500.0,0.00043835,31]
[334242920,1722855914872,-648.07,0.00043835,31]
[334242921,1722855914922,-629.74,0.00043835,31]
[334242922,1722855914970,-500.0,0.00043835,31]
[334242923,1722855915019,-1276.5,0.00043835,31]
[334242924,1722855915069,-500.0,0.00043835,31]
[334242925,1722855915120,-500.0,0.00043835,31]
[334242926,1722855915171,-556.09,0.00043835,31]
[334242927,1722855915221,-528.54886955,0.00043835,31]
[334242928,1722855915270,-500.0,0.00043835,31]
[334242929,1722855915320,-823.07,0.00043835,31]
[334242930,1722855915369,-500.0,0.00043835,31]
[334242931,1722855915418,-500.0,0.00043835,31]
[334242932,1722855915467,-500.0,0.00043835,31]
[334242933,1722855915516,-500.0,0.00043835,31]
[334242934,1722855915564,-500.0,0.00043835,31]
[334242935,1722855915613,-500.0,0.00043835,31]
[334242936,1722855915659,-574.39,0.00043835,31]
[334242937,1722855915706,-595.43,0.00043835,31]
[334242938,1722855915755,-500.0,0.00043835,31]
[334242939,1722855915807,-500.0,0.00043835,31]
[334242940,1722855915857,-500.0,0.00043835,31]
[334242941,1722855915904,-866.48,0.00043835,31]
[334242942,1722855915952,-500.0,0.00043835,31]
[334242943,1722855915998,-500.0,0.00043835,31]
[334242944,1722855916046,-500.0,0.00043835,31]
[334242945,1722855916095,-500.0,0.00043835,31]
[334242946,1722855916150,-590.56,0.00043835,31]
[334242947,1722855916199,-500.0,0.00043835,31]
[334242948,1722855916245,-500.0,0.00043835,31]
[334242949,1722855916293,-251.23672277,0.00043835,31]
[334242950,1722855916340,-500.0,0.00043835,31]
[334242951,1722855916389,-500.0,0.00043835,31]
[334242952,1722855916437,-902.94,0.00043835,31]
[334242953,1722855916484,-500.0,0.00043835,31]
[334242954,1722855916533,-500.0,0.00043835,31]
[334242955,1722855916583,-500.0,0.00043835,31]
[334242956,1722855916631,-512.02435883,0.00043835,31]
[334242957,1722855916677,-500.0,0.00043835,31]
[334242958,1722855916723,-500.0,0.00043835,31]
[334242959,1722855916773,-500.0,0.00043835,31]
[334242960,1722855916820,-465.62799538,0.00043835,31]
[334242961,1722855916868,-500.0,0.00043835,31]
[334242962,1722855916917,-1022.66,0.00043835,31]
[334242963,1722855916966,-500.0,0.00043835,31]
[334242964,1722855917017,-943.74,0.00043835,31]
[334242965,1722855917065,-500.0,0.00043835,31]
[334242966,1722855917118,-215.16203792,0.00043835,31]
[334242967,1722855917168,-1053.19,0.00043835,31]
[334242968,1722855917215,-500.0,0.00043835,31]
[334242969,1722855917273,-584.69,0.00043835,31]
[334242970,1722855917324,-1305.1,0.00043835,31]
[334242971,1722855917370,-600.0,0.00043835,120]
[334242972,1722855917417,-600.0,0.00043835,120]
[334242973,1722855917608,-600.0,0.00043835,120]
[334242974,1722855917656,-614.959379,0.00043835,120]
[334242975,1722855917702,-500.0,0.00043835,31]
[334242976,1722855917748,-553.49,0.00043835,31]
[334242977,1722855917798,-500.0,0.00043835,31]
[334242978,1722855917846,-500.0,0.00043835,31]
[334242979,1722855917896,-500.0,0.00043835,31]
[334242980,1722855917948,-898.41,0.00043835,31]
[334242981,1722855917996,-500.0,0.00043835,31]
[334242982,1722855918044,-551.60734947,0.00043835,31]
[334242983,1722855918093,-500.0,0.00043835,31]
[334242984,1722855918146,-989.94,0.00043835,31]
[334242985,1722855918197,-500.0,0.00043835,31]
[334242986,1722855918246,-500.0,0.00043835,31]
[334242987,1722855918295,-613.99,0.00043835,31]
[334242988,1722855918344,-500.0,0.00043835,31]
[334242989,1722855918393,-530.57,0.00043835,31]
[334242990,1722855918443,-500.0,0.00043835,31]
[334242991,1722855918492,-616.76,0.00043835,31]
[334242992,1722855918543,-500.0,0.00043835,31]
[334242993,1722855918594,-694.59,0.00043835,31]
[334242994,1722855918647,-1013.28,0.00043835,31]
[334242995,1722855918702,-500.0,0.00043835,31]
[334242996,1722855918755,-8149.15,0.00043835,31]
[334242997,1722855918805,-2171.38,0.00043835,31]
[334242998,1722855918858,-867.75,0.00043835,31]
[334242999,1722855918910,-500.0,0.00043835,31]
[334243000,1722855918966,-13964.26,0.00043835,31]
[334243001,1722855919016,-500.0,0.00043835,31]
[334243002,1722855919066,-623.8,0.00043835,31]
[334243003,1722855919118,-500.0,0.00043835,31]
[334243004,1722855919170,-1321.46,0.00043835,31]
[334243005,1722855919222,-500.0,0.00043835,31]
[334243006,1722855919271,-500.0,0.00043835,31]
[334243007,1722855919321,-781.23,0.00043835,31]
[334243008,1722855919370,-500.0,0.00043835,31]
[334243009,1722855919419,-615.54,0.00043835,31]
[334243010,1722855919470,-952.95,0.00043835,31]
[334243011,1722855919518,-538.82,0.00043835,31]
[334243012,1722855919567,-500.0,0.00043835,31]
[334243013,1722855919615,-500.0,0.00043835,31]
[334243014,1722855919662,-2841.01,0.00043835,31]
[334243015,1722855919711,-1921.77,0.00043835,31]
[334243016,1722855919758,-500.0,0.00043835,31]
[334243017,1722855919803,-362.47933453,0.00043835,31]
[334243018,1722855919848,-500.0,0.00043835,31]
[334243019,1722855919894,-629.38,0.00043835,31]
[334243020,1722855919939,-720.86,0.00043835,31]
[334243021,1722855919983,-500.0,0.00043835,31]
[334243022,1722855920027,-3289.33,0.00043835,31]
[334243023,1722855920071,-702.68,0.00043835,31]
[334243024,1722855920120,-500.0,0.00043835,31]
[334243025,1722855920163,-223.60005718,0.00043835,31]
[334243026,1722855920206,-2296.59,0.00043835,31]
[334243027,1722855920250,-1814.25,0.00043835,31]
[334243028,1722855920297,-753.6,0.00043835,31]
[334243029,1722855920345,-1640.04,0.00043835,31]
[334243030,1722855920390,-4120.74,0.00043835,31]
[334243031,1722855920436,-500.0,0.00043835,31]
[334243032,1722855920481,-500.0,0.00043835,31]
[334243033,1722855920531,-889.04,0.00043835,31]
[334243034,1722855920579,-573.47917358,0.00043835,31]
[334243035,1722855920624,-500.0,0.00043835,31]
[334243036,1722855920679,-500.0,0.00043835,31]
[334243037,1722855920726,-500.0,0.00043835,31]
[334243038,1722855920772,-505.33,0.00043835,31]
[334243039,1722855920820,-500.0,0.00043835,31]
[334243040,1722855920867,-500.0,0.00043835,31]
[334243041,1722855920913,-1260.62,0.00043835,31]
[334243042,1722855920959,-532.70928879,0.00043835,31]
[334243043,1722855921005,-500.0,0.00043835,31]
[334243044,1722855921050,-573.31,0.00043835,31]
[334243045,1722855921096,-790.04,0.00043835,31]
[334243046,1722855921146,-1310.1,0.00043835,31]
[334243047,1722855921193,-500.0,0.00043835,31]
[334243048,1722855921237,-994.56,0.00043835,31]
[334243049,1722855921282,-553.53661661,0.00043835,31]
[334243050,1722855921332,-7984.69,0.00043835,31]
[334243051,1722855921379,-549.92,0.00043835,31]
[334243052,1722855921426,-500.0,0.00043835,31]
[334243053,1722855921480,-500.0,0.00043835,31]
[334243054,1722855921526,-908.96,0.00043835,31]
[334243055,1722855921575,-500.0,0.00043835,31]
[334243056,1722855921623,-6173.34,0.00043835,31]
[334243057,1722855921668,-727.99,0.00043835,31]
[334243058,1722855921713,-1072.4,0.00043835,31]
[334243059,1722855921758,-500.0,0.00043835,31]
[334243060,1722855921804,-500.0,0.00043835,31]
[334243061,1722855921849,-500.0,0.00043835,31]
[334243062,1722855921897,-9665.63,0.00043835,31]
[334243063,1722855921945,-857.1,0.00043835,31]
[334243064,1722855921989,-1424.37,0.00043835,31]
[334243065,1722855922031,-500.0,0.00043835,31]
[334243066,1722855922077,-500.0,0.00043835,31]
[334243067,1722855922123,-803.81,0.00043835,31]
[334243068,1722855922167,-825.94,0.00043835,31]
[334243069,1722855922208,-12236.57,0.00043835,120]
[334243070,1722855922249,-500.0,0.00043835,31]
[334243071,1722855922292,-500.0,0.00043835,31]
[334243072,1722855922337,-3748.41,0.00043835,31]
[334243073,1722855922380,-500.0,0.00043835,31]
[334243074,1722855922424,-500.0,0.00043835,31]
[334243075,1722855922470,-1074.48726715,0.00043835,31]
[334243076,1722855951619,-500.0,0.00025,30]
[334243077,1722855951665,-306.0,0.00025,30]
[334243078,1722855951712,-500.0,0.00041095,31]
[334243079,1722855951757,-500.0,0.00041095,31]
[334243080,1722855951803,-500.0,0.00041095,31]
[334243081,1722855951848,-500.0,0.00041095,31]
[334243082,1722855951896,-500.0,0.00041095,31]
[334243083,1722855951944,-500.0,0.00041095,31]
[334243084,1722855951999,-500.0,0.00041095,31]
[334243085,1722855952044,-500.0,0.00041095,31]
[334243086,1722855952089,-500.0,0.00041095,31]